fUSD/lending_fUSD_20260529
["ID","MTS","AMOUNT","RATE_DAILY","PERIOD"]
[423249786,1779994244000,-151.0,0.00019178,2]
[423249860,1779994245000,-721.12765534,0.00020719,2]
[423249858,1779994245000,-152.0,0.00020719,2]
[423249861,1779994245000,-200.0,0.00020719,2]
[423249856,1779994245000,-152.0,0.00020719,2]
[423249866,1779994245000,-152.0,0.00020719,2]
[423249854,1779994245000,-151.0,0.00020719,2]
[423249857,1779994245000,-151.0,0.00020719,2]
[423249863,1779994245000,-151.0,0.00020719,2]
[423249864,1779994245000,-693.39197629,0.00020719,2]
[423249862,1779994245000,-152.0,0.00020719,2]
[423249865,1779994245000,-151.0,0.00020719,2]
[423249855,1779994245000,-2080.17592889,0.00020719,2]
[423249878,1779994245000,-500.0,0.00020719,2]
[423249867,1779994245000,-151.0,0.00020719,2]
[423249868,1779994245000,-152.0,0.00020719,2]
[423249870,1779994245000,-151.0,0.00020719,2]
[423249869,1779994245000,-151.0,0.00020719,2]
[423249872,1779994245000,-151.0,0.00020719,2]
[423249880,1779994245000,-152.0,0.00020719,2]
[423249871,1779994245000,-152.0,0.00020719,2]
[423249879,1779994245000,-151.0,0.00020719,2]
[423249877,1779994245000,-151.0,0.00020719,2]
[423249874,1779994245000,-500.0,0.00020719,2]
[423249873,1779994245000,-151.0,0.00020719,2]
[423249850,1779994245000,-151.0,0.00020719,2]
[423249859,1779994245000,-151.0,0.00020719,2]
[423249847,1779994245000,-578.20924308,0.00020719,2]
[423249835,1779994245000,-150.0,0.0002058,2]
[423249845,1779994245000,-151.0,0.00020719,2]
[423249824,1779994245000,-2984.0,0.0002,2]
[423249826,1779994245000,-613.04222186,0.0002,2]
[423249825,1779994245000,-500.0,0.0002,2]
[423249827,1779994245000,-5191.57,0.0002,2]
[423249829,1779994245000,-400.0,0.0002,2]
[423249836,1779994245000,-150.0,0.0002058,2]
[423249832,1779994245000,-3618.918563,0.0002002,2]
[423249837,1779994245000,-150.0,0.0002058,2]
[423249828,1779994245000,-150.0,0.0002,20]
[423249831,1779994245000,-2000.0,0.0002001,2]
[423249834,1779994245000,-1582.14,0.00020548,2]
[423249833,1779994245000,-2380.5,0.00020381,2]
[423249830,1779994245000,-2000.0,0.0002,7]
[423249839,1779994245000,-174.61919141,0.00020719,2]
[423249840,1779994245000,-151.0,0.00020719,2]
[423249838,1779994245000,-150.0,0.0002058,2]
[423249842,1779994245000,-1428.38747117,0.00020719,2]
[423249852,1779994245000,-151.0,0.00020719,2]
[423249844,1779994245000,-151.0,0.00020719,2]
[423249853,1779994245000,-151.0,0.00020719,2]
[423249846,1779994245000,-180.86370417,0.00020719,2]
[423249843,1779994245000,-200.0,0.00020719,2]
[423249849,1779994245000,-151.0,0.00020719,2]
[423249848,1779994245000,-151.0,0.00020719,2]
[423249851,1779994245000,-151.0,0.00020719,2]
[423249841,1779994245000,-200.0,0.00020719,2]
[423249875,1779994245000,-152.0,0.00020719,2]
[423249892,1779994245000,-152.0,0.00020719,2]
[423249882,1779994245000,-500.0,0.00020719,2]
[423249914,1779994245000,-831.51979762,0.00020994,2]
[423249915,1779994245000,-157.0,0.00021,2]
[423249910,1779994245000,-532.63443254,0.00020923,2]
[423249911,1779994245000,-151.0,0.00020939,2]
[423249913,1779994245000,-151.0,0.00020994,2]
[423249917,1779994245000,-332.0,0.00021,2]
[423249919,1779994245000,-151.0,0.00021,2]
[423249928,1779994245000,-170.98804429,0.00021065,2]
[423249923,1779994245000,-194.0,0.00021,2]
[423249922,1779994245000,-209.0,0.00021,2]
[423249920,1779994245000,-218.0,0.00021,2]
[423249918,1779994245000,-1213.0,0.00021,2]
[423249924,1779994245000,-2052.0,0.00021,2]
[423249925,1779994245000,-442.0,0.00021,2]
[423249926,1779994245000,-151.0,0.00021049,2]
[423249927,1779994245000,-862.28603014,0.00021049,2]
[423249930,1779994245000,-150.0,0.00021099,2]
[423249929,1779994245000,-150.0,0.00021099,2]
[423249931,1779994245000,-150.0,0.00021099,2]
[423249933,1779994245000,-150.0,0.00021099,2]
[423249932,1779994245000,-150.0,0.00021099,2]
[423249935,1779994245000,-894.19061325,0.00021104,2]
[423249934,1779994245000,-151.0,0.00021104,2]
[423249936,1779994245000,-151.0,0.00021159,2]
[423249876,1779994245000,-151.0,0.00020719,2]
[423249912,1779994245000,-801.85129954,0.00020939,2]
[423249909,1779994245000,-773.24136889,0.00020884,2]
[423249921,1779994245000,-915.0,0.00021,2]
[423249908,1779994245000,-151.0,0.00020884,2]
[423249893,1779994245000,-500.0,0.00020719,2]
[423249907,1779994245000,-745.65223615,0.00020829,2]
[423249881,1779994245000,-151.0,0.00020719,2]
[423249884,1779994245000,-151.0,0.00020719,2]
[423249883,1779994245000,-151.0,0.00020719,2]
[423249888,1779994245000,-151.0,0.00020719,2]
[423249890,1779994245000,-500.0,0.00020719,2]
[423249886,1779994245000,-500.0,0.00020719,2]
[423249887,1779994245000,-151.0,0.00020719,2]
[423249891,1779994245000,-151.0,0.00020719,2]
[423249885,1779994245000,-152.0,0.00020719,2]
[423249897,1779994245000,-151.0,0.00020719,2]
[423249894,1779994245000,-151.0,0.00020719,2]
[423249889,1779994245000,-152.0,0.00020719,2]
[423249916,1779994245000,-707.0,0.00021,2]
[423249905,1779994245000,-1108.9892261,0.00020783,2]
[423249896,1779994245000,-500.0,0.00020719,2]
[423249906,1779994245000,-151.0,0.00020829,2]
[423249899,1779994245000,-151.0,0.00020719,2]
[423249901,1779994245000,-500.0,0.00020719,2]
[423249904,1779994245000,-719.04747942,0.00020774,2]
[423249903,1779994245000,-151.0,0.00020774,2]
[423249895,1779994245000,-151.0,0.00020719,2]
[423249900,1779994245000,-500.0,0.00020719,2]
[423249898,1779994245000,-500.0,0.00020719,2]
[423249902,1779994245000,-500.0,0.00020719,2]
[423249977,1779994246000,-800.0,0.00021918,2]
[423249980,1779994246000,-800.0,0.00021918,2]
[423249976,1779994246000,-1006.29,0.00021918,2]
[423249974,1779994246000,-532.63443254,0.00021894,2]
[423249973,1779994246000,-932.0,0.00021851,2]
[423249968,1779994246000,-1272.0,0.00021851,2]
[423249970,1779994246000,-1225.0,0.00021851,2]
[423249975,1779994246000,-5000.0,0.00021918,2]
[423249969,1779994246000,-525.0,0.00021851,2]
[423249972,1779994246000,-6064.0,0.00021851,2]
[423249991,1779994246000,-915.0,0.00022,2]
[423249978,1779994246000,-800.0,0.00021918,2]
[423249990,1779994246000,-218.0,0.00022,2]
[423249992,1779994246000,-209.0,0.00022,2]
[423249983,1779994246000,-532.63443254,0.00021983,2]
[423249987,1779994246000,-1213.0,0.00022,2]
[423249988,1779994246000,-151.0,0.00022,2]
[423249986,1779994246000,-332.0,0.00022,2]
[423249984,1779994246000,-157.0,0.00022,2]
[423249982,1779994246000,-197.2394493,0.00021918,2]
[423249979,1779994246000,-800.0,0.00021918,2]
[423249985,1779994246000,-707.0,0.00022,2]
[423249989,1779994246000,-273.23,0.00022,7]
[423249993,1779994246000,-194.0,0.00022,2]
[423249995,1779994246000,-442.0,0.00022,2]
[423249971,1779994246000,-150.0,0.00021851,2]
[423249981,1779994246000,-800.0,0.00021918,2]
[423249967,1779994246000,-928.0,0.00021851,2]
[423249937,1779994246000,-927.27566594,0.00021159,2]
[423249962,1779994246000,-200.0,0.00021815,2]
[423249994,1779994246000,-2052.0,0.00022,2]
[423249943,1779994246000,-200.0,0.00021267,2]
[423249938,1779994246000,-289.00262903,0.00021214,2]
[423249940,1779994246000,-181.08010149,0.00021267,2]
[423249939,1779994246000,-961.58486558,0.00021214,2]
[423249942,1779994246000,-200.0,0.00021267,2]
[423249941,1779994246000,-1481.2378076,0.00021267,2]
[423249945,1779994246000,-284.49311848,0.00021267,2]
[423249944,1779994246000,-2157.14243826,0.00021267,2]
[423249946,1779994246000,-997.16350561,0.00021269,2]
[423249948,1779994246000,-532.63443254,0.00021411,2]
[423249954,1779994246000,-532.63443254,0.0002156,2]
[423249950,1779994246000,-532.63443254,0.00021447,2]
[423249949,1779994246000,-532.63443254,0.00021417,2]
[423249952,1779994246000,-532.63443254,0.00021467,2]
[423249953,1779994246000,-58407.43791636,0.000215,2]
[423249951,1779994246000,-532.63443254,0.00021452,2]
[423249956,1779994246000,-532.63443254,0.00021582,2]
[423249959,1779994246000,-5191.57,0.00021786,2]
[423249955,1779994246000,-425.99447248,0.00021567,2]
[423249966,1779994246000,-3549.0,0.00021851,2]
[423249958,1779994246000,-532.63443254,0.00021746,2]
[423249957,1779994246000,-532.63443254,0.00021704,2]
[423249960,1779994246000,-187.78006524,0.00021815,2]
[423249961,1779994246000,-1536.04360648,0.00021815,2]
[423249964,1779994246000,-2236.95670847,0.00021815,2]
[423249963,1779994246000,-200.0,0.00021815,2]
[423249965,1779994246000,-1356.0,0.00021851,2]
[423250002,1779994246000,-194.72792766,0.00022363,2]
[423249947,1779994246000,-500.0,0.00021324,2]
[423249996,1779994246000,-450.0,0.00022,2]
[423250031,1779994246000,-2052.0,0.00023,2]
[423250036,1779994246000,-200.0,0.00023157,2]
[423250042,1779994246000,-209.40437684,0.00023459,2]
[423250035,1779994246000,-215.50460005,0.000231,7]
[423250037,1779994246000,-262.09018149,0.000232,2]
[423250038,1779994246000,-500.0,0.00023356,7]
[423250039,1779994246000,-500.0,0.00023356,7]
[423250033,1779994246000,-500.0,0.00023082,7]
[423250041,1779994246000,-747.80937859,0.00023458,2]
[423250034,1779994246000,-300.0,0.000231,7]
[423250043,1779994246000,-453.46818873,0.00023459,2]
[423250032,1779994246000,-442.0,0.00023,2]
[423250040,1779994246000,-599.60298507,0.00023458,2]
[423250055,1779994246000,-336.92725443,0.00024,2]
[423250045,1779994246000,-2494.55939288,0.00023459,2]
[423250044,1779994246000,-200.0,0.00023459,2]
[423250047,1779994246000,-200.0,0.0002395,2]
[423250051,1779994246000,-27174.53233993,0.00024,2]
[423250050,1779994246000,-1256.06464582,0.00024,2]
[423250052,1779994246000,-160.0309022,0.00024,2]
[423250049,1779994246000,-3600.0,0.00024,2]
[423250048,1779994246000,-1038.78403563,0.00024,2]
[423250056,1779994246000,-1232.30558325,0.00024,2]
[423250054,1779994246000,-712.0,0.00024,2]
[423250057,1779994246000,-165.0,0.00024,2]
[423250058,1779994246000,-232.20398155,0.00024,2]
[423250004,1779994246000,-200.0,0.00022363,2]
[423250027,1779994246000,-218.0,0.00023,2]
[423250025,1779994246000,-1213.0,0.00023,2]
[423250046,1779994246000,-5191.57,0.00023573,2]
[423250028,1779994246000,-915.0,0.00023,2]
[423250026,1779994246000,-151.0,0.00023,2]
[423249997,1779994246000,-2000.0,0.00022,7]
[423250003,1779994246000,-1592.87721992,0.00022363,2]
[423249999,1779994246000,-532.63443254,0.00022102,2]
[423249998,1779994246000,-972.67,0.00022,2]
[423250000,1779994246000,-308.24,0.000222,2]
[423250001,1779994246000,-2380.5,0.00022353,2]
[423250006,1779994246000,-200.0,0.00022364,2]
[423250017,1779994246000,-201.93286098,0.00022911,2]
[423250005,1779994246000,-2319.72410669,0.00022363,2]
[423250010,1779994246000,-1096.42,0.00022466,2]
[423250011,1779994246000,-349.76,0.00022466,2]
[423250008,1779994246000,-572.84900409,0.00022407,2]
[423250012,1779994246000,-2175.25,0.00022466,2]
[423250016,1779994246000,-600.0,0.000225,7]
[423250007,1779994246000,-572.84900411,0.00022407,2]
[423250023,1779994246000,-707.0,0.00023,2]
[423250009,1779994246000,-572.84900409,0.00022407,2]
[423250022,1779994246000,-157.0,0.00023,2]
[423250024,1779994246000,-332.0,0.00023,2]
[423250030,1779994246000,-194.0,0.00023,2]
[423250029,1779994246000,-209.0,0.00023,2]
[423250021,1779994246000,-189.53,0.00023,2]
[423250019,1779994246000,-200.0,0.00022911,2]
[423250020,1779994246000,-2405.55389863,0.00022911,2]
[423250018,1779994246000,-1651.81367706,0.00022911,2]
[423250013,1779994246000,-1500.0,0.00022473,2]
[423250015,1779994246000,-1800.0,0.000225,2]
[423250014,1779994246000,-600.0,0.00022473,7]
[423250085,1779994247000,-1248.93,0.00024323,2]
[423250078,1779994247000,-197.93351383,0.00024174,2]
[423250080,1779994247000,-273.23,0.000242,7]
[423250089,1779994247000,-1248.93,0.00024325,2]
[423250084,1779994247000,-1248.93,0.00024323,2]
[423250082,1779994247000,-1248.93,0.00024321,2]
[423250081,1779994247000,-3758.94448315,0.0002421,2]
[423250086,1779994247000,-1248.93,0.00024323,2]
[423250095,1779994247000,-225.18697532,0.00024555,2]
[423250088,1779994247000,-1248.9,0.00024325,2]
[423250090,1779994247000,-1248.93,0.00024325,2]
[423250091,1779994247000,-170.13497217,0.00024438,2]
[423250101,1779994247000,-1000.0,0.00024658,2]
[423250100,1779994247000,-151.65,0.00024658,2]
[423250079,1779994247000,-8165.87,0.00024174,2]
[423250097,1779994247000,-2682.57183977,0.00024555,2]
[423250087,1779994247000,-2380.5,0.00024324,2]
[423250071,1779994247000,-150.0,0.00024099,2]
[423250061,1779994247000,-194.37189547,0.00024,2]
[423250076,1779994247000,-306.04,0.0002411,2]
[423250092,1779994247000,-529.54018958,0.00024439,2]
[423250060,1779994247000,-211.0,0.00024,2]
[423250059,1779994247000,-923.20493935,0.00024,2]
[423250065,1779994247000,-2000.0,0.00024,7]
[423250063,1779994247000,-443.24138905,0.00024,2]
[423250064,1779994247000,-500.0,0.00024,2]
[423250062,1779994247000,-2052.54553,0.00024,2]
[423250072,1779994247000,-150.0,0.00024099,2]
[423250067,1779994247000,-200.0,0.00024007,2]
[423250066,1779994247000,-217.15233878,0.00024007,2]
[423250068,1779994247000,-2586.85809042,0.00024007,2]
[423250073,1779994247000,-150.0,0.00024099,2]
[423250070,1779994247000,-330.0,0.00024094,5]
[423250069,1779994247000,-730.0,0.00024087,10]
[423250074,1779994247000,-150.0,0.00024099,2]
[423250075,1779994247000,-150.0,0.00024099,2]
[423250077,1779994247000,-500.0,0.00024136,2]
[423250098,1779994247000,-1594.56643567,0.00024575,30]
[423250083,1779994247000,-1248.93,0.00024321,2]
[423250094,1779994247000,-3280.44369286,0.000245,2]
[423250122,1779994247000,-152.0,0.00024978,7]
[423250124,1779994247000,-151.0,0.00024997,7]
[423250121,1779994247000,-1594.56643567,0.00024959,30]
[423250123,1779994247000,-152.0,0.00024978,7]
[423250125,1779994247000,-313.60822115,0.00025,2]
[423250127,1779994247000,-150.0,0.00025,2]
[423250128,1779994247000,-1405.72280327,0.00025,2]
[423250116,1779994247000,-1594.56643567,0.00024877,30]
[423250126,1779994247000,-20000.0,0.00025,2]
[423250129,1779994247000,-221341.91606621,0.00025,2]
[423250131,1779994247000,-2784.042176,0.00025,2]
[423250133,1779994247000,-3375.21083408,0.000149,2]
[423250132,1779994247000,-2110.12454954,0.00014833,2]
[423250135,1779994247000,-1597.04108625,0.00018851,2]
[423250134,1779994247000,-2039.95891375,0.00018851,2]
[423250136,1779994247000,-104.96521599,0.00021851,2]
[423250130,1779994247000,-911.04973647,0.00025,2]
[423250117,1779994247000,-425.99447248,0.000249,2]
[423250118,1779994247000,-9360.07001736,0.000249,2]
[423250120,1779994247000,-972.67,0.00024942,7]
[423250096,1779994247000,-200.0,0.00024555,2]
[423250099,1779994247000,-529.54018958,0.0002464,2]
[423250102,1779994247000,-994.12,0.00024658,2]
[423250103,1779994247000,-500.0,0.00024658,7]
[423250110,1779994247000,-1272.0,0.00024851,2]
[423250107,1779994247000,-1356.0,0.00024851,2]
[423250119,1779994247000,-546.76739545,0.000249,2]
[423250105,1779994247000,-200.0,0.00024743,2]
[423250109,1779994247000,-928.0,0.00024851,2]
[423250104,1779994247000,-1594.56643567,0.00024685,30]
[423250093,1779994247000,-500.0,0.00024452,7]
[423250106,1779994247000,-1594.56643567,0.00024767,30]
[423250112,1779994247000,-1225.0,0.00024851,2]
[423250111,1779994247000,-525.0,0.00024851,2]
[423250113,1779994247000,-150.0,0.00024851,2]
[423250115,1779994247000,-932.0,0.00024851,2]
[423250114,1779994247000,-6064.0,0.00024851,2]
[423250108,1779994247000,-3549.0,0.00024851,2]
[423250137,1779994313000,-228.1171,0.00012338,2]
[423250138,1779994318000,-235.7989687,0.000126,2]
[423250144,1779994534000,160.02,6.828e-05,2]
[423250145,1779994753000,-150.0,0.00012668,2]
[423250146,1779994884000,695.28,0.00027679,120]
[423250148,1779995226000,-153.83059999,0.00013,2]
[423250150,1779995226000,-150.0,0.000132,2]
[423250151,1779995226000,-436.2,0.00013657,2]
[423250149,1779995226000,-318.21409113,0.0001306,2]
[423250152,1779995226000,-57.29556091,0.00013657,2]
[423250154,1779995246000,-260.35698366,0.00013833,2]
[423250153,1779995246000,-102.72443909,0.00013657,2]
[423250155,1779995246000,-82.54373851,0.00013833,2]
[423250156,1779995354000,276.95,6.828e-05,2]
[423250165,1779995431000,-215.50460005,0.00014751,2]
[423250163,1779995431000,-500.0,0.0001475,2]
[423250159,1779995431000,-193.0,0.000143,2]
[423250162,1779995431000,-436.2,0.00014681,2]
[423250164,1779995431000,-500.0,0.0001475,2]
[423250161,1779995431000,-436.2,0.00014339,2]
[423250158,1779995431000,-436.2,0.00013998,2]
[423250160,1779995431000,-209.03147293,0.00014307,2]
[423250216,1779995432000,-365.45753955,0.00018,2]
[423250238,1779995432000,-500.0,0.00018512,2]
[423250236,1779995432000,-365.45753955,0.000185,2]
[423250226,1779995432000,-174.682,0.00018233,2]
[423250228,1779995432000,-166.66,0.00018385,2]
[423250214,1779995432000,-221.27,0.00017918,2]
[423250220,1779995432000,-200.0,0.00018133,2]
[423250218,1779995432000,-166.66,0.00018006,2]
[423250224,1779995432000,-3132.929,0.00018233,2]
[423250210,1779995432000,-3637.0,0.00017485,2]
[423250222,1779995432000,-365.45753955,0.000182,2]
[423250244,1779995432000,-166.66,0.00018764,2]
[423250212,1779995432000,-587.0,0.00017886,2]
[423250232,1779995432000,-503.56250299,0.000184,2]
[423250248,1779995432000,-200.0,0.00019,2]
[423250230,1779995432000,-365.45753955,0.000184,2]
[423250240,1779995432000,-404.0,0.00018575,2]
[423250234,1779995432000,-1587.0,0.0001841,2]
[423250246,1779995432000,-1000.0,0.000189,2]
[423250249,1779995432000,-166.66,0.00019143,2]
[423250208,1779995432000,-6064.0,0.00017485,2]
[423250250,1779995432000,-167.53,0.00019144,2]
[423250261,1779995432000,-928.0,0.00019851,2]
[423250257,1779995432000,-150.0,0.00019851,2]
[423250259,1779995432000,-150.099,0.00019851,2]
[423250252,1779995432000,-309.0,0.000195,2]
[423250253,1779995432000,-166.66,0.00019522,2]
[423250254,1779995432000,-200.0,0.00019567,2]
[423250242,1779995432000,-365.45753955,0.000187,2]
[423250206,1779995432000,-200.0,0.00017,2]
[423250166,1779995432000,-500.0,0.00014758,2]
[423250202,1779995432000,-2486.0,0.00016553,2]
[423250262,1779995432000,-1356.0,0.00019851,2]
[423250167,1779995432000,-338.18944025,0.00014758,2]
[423250175,1779995432000,-500.0,0.00014961,2]
[423250176,1779995432000,-500.0,0.00014999,2]
[423250169,1779995432000,-300.0,0.0001493,2]
[423250174,1779995432000,-299.99,0.00014931,2]
[423250168,1779995432000,-500.0,0.00014758,2]
[423250177,1779995432000,-500.0,0.00014999,2]
[423250173,1779995432000,-1223.82,0.00014931,2]
[423250172,1779995432000,-9783.8,0.00014931,2]
[423250178,1779995432000,-500.0,0.00014999,2]
[423250170,1779995432000,-448.00436838,0.00014931,2]
[423250171,1779995432000,-150.99,0.00014931,2]
[423250179,1779995432000,-500.0,0.00014999,2]
[423250180,1779995432000,-500.0,0.00014999,2]
[423250183,1779995432000,-500.0,0.00014999,2]
[423250181,1779995432000,-500.0,0.00014999,2]
[423250182,1779995432000,-500.0,0.00014999,2]
[423250192,1779995432000,-217.89902769,0.00015021,2]
[423250191,1779995432000,-500.0,0.00015021,2]
[423250197,1779995432000,-153.01181789,0.00015398,2]
[423250193,1779995432000,-616.41429428,0.00015021,2]
[423250189,1779995432000,-174.38688148,0.00015021,2]
[423250185,1779995432000,-500.0,0.00014999,2]
[423250194,1779995432000,-601.41321021,0.00015021,2]
[423250187,1779995432000,-444.43142176,0.00014999,2]
[423250196,1779995432000,-436.2,0.00015022,2]
[423250198,1779995432000,-420.0,0.00016341,2]
[423250200,1779995432000,-1587.0,0.00016438,2]
[423250204,1779995432000,-168.11,0.00016712,2]
[423250255,1779995432000,-435.0,0.00019576,2]
[423250251,1779995432000,-947.0,0.000195,2]
[423250256,1779995432000,-150.0,0.00019851,2]
[423250302,1779995432000,-151.0,0.00021499,2]
[423250300,1779995432000,-200.0,0.00021499,2]
[423250297,1779995432000,-151.0,0.00021499,2]
[423250295,1779995432000,-500.0,0.00021324,2]
[423250293,1779995432000,-353.0,0.00021,2]
[423250299,1779995432000,-151.0,0.00021499,2]
[423250294,1779995432000,-200.0,0.00021,2]
[423250301,1779995432000,-174.61919141,0.00021499,2]
[423250296,1779995432000,-23503.1483,0.0002133,2]
[423250298,1779995432000,-1428.38747117,0.00021499,2]
[423250304,1779995432000,-151.0,0.00021499,2]
[423250306,1779995432000,-152.0,0.00021499,2]
[423250308,1779995432000,-152.0,0.00021499,2]
[423250307,1779995432000,-151.0,0.00021499,2]
[423250310,1779995432000,-152.0,0.00021499,2]
[423250314,1779995432000,-721.12765534,0.00021499,2]
[423250311,1779995432000,-151.0,0.00021499,2]
[423250305,1779995432000,-151.0,0.00021499,2]
[423250312,1779995432000,-152.0,0.00021499,2]
[423250309,1779995432000,-151.0,0.00021499,2]
[423250313,1779995432000,-693.39197629,0.00021499,2]
[423250318,1779995432000,-152.0,0.00021499,2]
[423250322,1779995432000,-151.0,0.00021499,2]
[423250316,1779995432000,-500.0,0.00021499,2]
[423250315,1779995432000,-151.0,0.00021499,2]
[423250321,1779995432000,-500.0,0.00021499,2]
[423250317,1779995432000,-2080.17592889,0.00021499,2]
[423250319,1779995432000,-151.0,0.00021499,2]
[423250258,1779995432000,-151.0,0.00019851,2]
[423250303,1779995432000,-578.20924308,0.00021499,2]
[423250291,1779995432000,-153.0,0.00021,2]
[423250323,1779995432000,-152.0,0.00021499,2]
[423250281,1779995432000,-695.28,0.00020131,2]
[423250292,1779995432000,-1539.0,0.00021,2]
[423250260,1779995432000,-3549.0,0.00019851,2]
[423250320,1779995432000,-151.0,0.00021499,2]
[423250278,1779995432000,-19745.24,0.0002,2]
[423250290,1779995432000,-156.0,0.00021,2]
[423250264,1779995432000,-525.0,0.00019851,2]
[423250276,1779995432000,-1539.0,0.0002,2]
[423250277,1779995432000,-353.0,0.0002,2]
[423250263,1779995432000,-1272.0,0.00019851,2]
[423250268,1779995432000,-150.0,0.0002,2]
[423250289,1779995432000,-686.0,0.00021,2]
[423250270,1779995432000,-232.0,0.0002,2]
[423250271,1779995432000,-849.0,0.0002,2]
[423250280,1779995432000,-919.61,0.00020131,2]
[423250267,1779995432000,-166.66,0.00019901,2]
[423250285,1779995432000,-731.0,0.00021,2]
[423250282,1779995432000,-1587.0,0.00020381,2]
[423250272,1779995432000,-152.0,0.0002,2]
[423250269,1779995432000,-731.0,0.0002,2]
[423250287,1779995432000,-849.0,0.00021,2]
[423250279,1779995432000,-254.19,0.00020131,2]
[423250273,1779995432000,-686.0,0.0002,2]
[423250286,1779995432000,-232.0,0.00021,2]
[423250265,1779995432000,-1225.0,0.00019851,2]
[423250275,1779995432000,-153.0,0.0002,2]
[423250266,1779995432000,-2468.0583,0.000199,2]
[423250288,1779995432000,-152.0,0.00021,2]
[423250284,1779995432000,-3637.0,0.00020485,2]
[423250274,1779995432000,-156.0,0.0002,2]
[423250283,1779995432000,-6064.0,0.00020485,2]
[423250358,1779995433000,-745.65223615,0.00021609,2]
[423250355,1779995433000,-151.0,0.00021499,2]
[423250357,1779995433000,-719.04747942,0.00021554,2]
[423250364,1779995433000,-387.98943369,0.00021829,2]
[423250356,1779995433000,-151.0,0.00021499,2]
[423250362,1779995433000,-831.51979762,0.00021774,2]
[423250366,1779995433000,-200.0,0.00021964,2]
[423250365,1779995433000,-5000.0,0.00021918,2]
[423250361,1779995433000,-583.01099152,0.00021729,2]
[423250359,1779995433000,-773.24136889,0.00021664,2]
[423250360,1779995433000,-801.85129954,0.00021719,2]
[423250363,1779995433000,-17431.12,0.00021779,2]
[423250371,1779995433000,-686.0,0.00022,2]
[423250378,1779995433000,-200.0,0.00022047,2]
[423250367,1779995433000,-731.0,0.00022,2]
[423250370,1779995433000,-152.0,0.00022,2]
[423250369,1779995433000,-849.0,0.00022,2]
[423250373,1779995433000,-153.0,0.00022,2]
[423250376,1779995433000,-3930.86,0.00022,2]
[423250372,1779995433000,-156.0,0.00022,2]
[423250375,1779995433000,-353.0,0.00022,2]
[423250374,1779995433000,-1539.0,0.00022,2]
[423250377,1779995433000,-1481.2378076,0.00022047,2]
[423250354,1779995433000,-151.0,0.00021499,2]
[423250380,1779995433000,-2157.14243826,0.00022047,2]
[423250368,1779995433000,-232.0,0.00022,2]
[423250342,1779995433000,-151.0,0.00021499,2]
[423250335,1779995433000,-152.0,0.00021499,2]
[423250348,1779995433000,-151.0,0.00021499,2]
[423250379,1779995433000,-181.08010149,0.00022047,2]
[423250326,1779995433000,-151.0,0.00021499,2]
[423250325,1779995433000,-500.0,0.00021499,2]
[423250327,1779995433000,-152.0,0.00021499,2]
[423250324,1779995433000,-151.0,0.00021499,2]
[423250329,1779995433000,-500.0,0.00021499,2]
[423250340,1779995433000,-500.0,0.00021499,2]
[423250328,1779995433000,-151.0,0.00021499,2]